fUSD/lending_fUSD_20240528
["ID","MTS","AMOUNT","RATE_DAILY","PERIOD"]
[328124306,1716907832593,-2605.72998571,0.0001274,2]
[328124307,1716907832603,-346.57302212,0.0001274,2]
[328124308,1716907832613,-5000.0,0.000128,2]
[328124309,1716907832622,-7852.03221917,0.00012899,2]
[328124310,1716907832632,-171.08976276,0.000129,2]
[328124311,1716907832643,-7500.0,0.000129,2]
[328124312,1716907832652,-7732.74321897,0.000129,2]
[328124313,1716907832661,-2500.0,0.000129,2]
[328124314,1716907832671,-299.23019146,0.000129,2]
[328124315,1716907832681,-385.32218367,0.000129,2]
[328124316,1716907832691,-4303.94051264,0.000129,2]
[328124317,1716907832701,-1783.18747583,0.000129,2]
[328124318,1716907832711,-613.88192004,0.000129,2]
[328124319,1716907832720,-808.465,0.000129,2]
[328124320,1716907832730,-215.79130866,0.000129,2]
[328124321,1716907832743,-1010.244718,0.000129,2]
[328124322,1716907832752,-312.58914297,0.000129,2]
[328124323,1716907832761,-200.0,0.00012908,2]
[328124324,1716907832771,-837.59882617,0.0001297,2]
[328124325,1716907832801,-162.40117383,0.0001297,2]
[328124326,1716907832810,-561.52882617,0.0001297,2]
[328124327,1716907832824,-438.47117383,0.0001297,2]
[328124328,1716907832834,-1000.0,0.0001297,2]
[328124329,1716907832844,-1000.0,0.0001297,2]
[328124330,1716907832853,-1250.0,0.0001297,2]
[328124331,1716907832863,-152.99,0.0001299,2]
[328124332,1716907832873,-152.99,0.0001299,2]
[328124333,1716907832882,-152.99,0.0001299,2]
[328124334,1716907832892,-152.99,0.0001299,2]
[328124335,1716907832902,-152.99,0.0001299,2]
[328124336,1716907832912,-152.99,0.0001299,2]
[328124337,1716907832922,-1000.0,0.0001299,2]
[328124338,1716907832932,-918.0,0.0001299,2]
[328124339,1716907832942,-325.93727301,0.00012997,2]
[328124340,1716907832952,-783.72960066,0.00012997,2]
[328124341,1716907832962,-505.36917605,0.00012997,2]
[328124342,1716907832972,-163.49476447,0.00012997,2]
[328124343,1716907832983,-314.006518,0.00012997,2]
[328124344,1716907832994,-155.0,0.00012998,2]
[328124345,1716907833003,-3994.18314134,0.00012998,2]
[328124346,1716907833013,-318.29985525,0.00012998,2]
[328124347,1716907833023,-1698.26715129,0.00012998,2]
[328124348,1716907833033,-156.32615111,0.00012998,2]
[328124349,1716907833043,-155.0,0.00012998,2]
[328124350,1716907833053,-160.62559698,0.00012998,2]
[328124351,1716907833063,-210.97668376,0.00012998,2]
[328124352,1716907833072,-155.49460868,0.00012998,2]
[328124353,1716907833086,-764.56629757,0.00012998,2]
[328124354,1716907833096,-306.37473052,0.00012998,2]
[328124355,1716907833106,-811.7231,0.00012998,2]
[328124356,1716907833115,-3136.51857874,0.00012999,2]
[328124357,1716907833126,-2684.54892385,0.00013,2]
[328124358,1716907833136,-85623.57585499,0.00013,2]
[328124359,1716907833146,-233252.50077872,0.00013,2]
[328124360,1716907833158,-504.69421276,0.00013,2]
[328124361,1716907833171,-2470.24297497,0.00013,2]
[328124362,1716907833183,-358.56966238,0.00013,2]
[328124363,1716907838182,-1698.95525091,0.00013,2]
[328124367,1716907838196,-15465.59999998,0.00013,2]
[328124377,1716907838490,-958591.16349942,0.00013,2]
[328124378,1716907838502,-250.77356933,0.00013,2]
[328124379,1716907838881,-284.56,0.00013,2]
[328124381,1716907838894,-987.33355101,0.00013,2]
[328124388,1716907841408,-539.06283141,0.00013,2]
[328124389,1716907842577,-3694.355,0.00012972,2]
[328124391,1716907842586,-10949.00457632,0.00013,2]
[328124415,1716907843147,-366940.50000191,0.00013,2]
[328124427,1716907843451,-3594.08311149,0.00013,2]
[328124428,1716907843463,-4578.58959839,0.00013,2]
[328124430,1716907843862,-196012.17166592,0.00013,2]
[328124524,1716907846856,-302.2822,0.000129,2]
[328124526,1716907846867,-767.09016927,0.00012999,2]
[328124718,1716908859956,-337.47918463,9.545e-05,2]
[328124719,1716908859982,-2815.94628034,9.545e-05,2]
[328124720,1716908860010,-542.7,9.546e-05,2]
[328124721,1716908860035,-155.0,0.00010218,2]
[328124722,1716908860062,-155.0,0.00010218,2]
[328124723,1716908860089,-1250.27450906,0.00010218,2]
[328124724,1716908860115,-209.34589343,0.00010219,2]
[328124725,1716908860139,-327.22308883,0.00010317,2]
[328124726,1716908860166,-489.49792713,0.00010317,2]
[328124727,1716908860191,-165.56535883,0.00010336,2]
[328124728,1716908860217,-878.46448352,0.00010756,2]
[328124729,1716908860242,-15220.6056,0.00010757,2]
[328124730,1716908860267,-46671.01,0.00010757,2]
[328124731,1716908860292,-9931.88767423,0.00010857,2]
[328124732,1716908904873,150.0,9.293e-05,2]
[328124733,1716908904902,5.1,9.293e-05,2]
[328124739,1716909032383,-17307.80855084,0.00010751,2]
[328124740,1716909032393,-337.47918463,0.00010851,2]
[328124741,1716909032403,-2815.94628034,0.00010852,2]
[328124742,1716909032412,-155.0,0.00010852,2]
[328124744,1716909032422,-450.61403774,0.00010853,2]
[328124745,1716909032431,-723.53252238,0.00010854,2]
[328124747,1716909032441,-19517.36642834,0.00010855,2]
[328124748,1716909032450,-425.1406425,0.00010856,2]
[328124750,1716909032462,-155.0,0.00010856,2]
[328124752,1716909032476,-999.99,0.00010959,2]
[328124753,1716909032485,-150.99,0.00010959,2]
[328124754,1716909032494,-826.39,0.00010959,2]
[328124755,1716909032504,-1675.89,0.00011394,2]
[328124756,1716909032513,-167.29,0.00011487,2]
[328124757,1716909032523,-200.48,0.00011487,2]
[328124758,1716909032533,-23900.0,0.00011531,2]
[328124759,1716909032542,-600.0,0.00011557,2]
[328124760,1716909032553,-250.0,0.00011614,2]
[328124761,1716909032563,-165.21,0.00011786,2]
[328124762,1716909032572,-542.7,0.0001181,2]
[328124763,1716909032581,-1537.19,0.00011831,2]
[328124764,1716909032591,-9999.99,0.00011831,2]
[328124765,1716909032600,-499.99,0.00011831,2]
[328124766,1716909032609,-150.13,0.00011868,2]
[328124767,1716909032618,-283.9538657,0.00011879,2]
[328124768,1716909032627,-447.53576929,0.0001188,2]
[328124769,1716909032636,-250.0,0.0001204,2]
[328124770,1716909032645,-400.0,0.00012434,2]
[328124771,1716909032820,-1725.29,0.00012434,2]
[328124772,1716909032830,-150.13,0.00012486,2]
[328124773,1716909032839,-722.95,0.00012606,2]
[328124774,1716909032849,-418.75142139,0.00012739,2]
[328124775,1716909032857,-370.8562,0.00012798,2]
[328124776,1716909032867,-1138.6461,0.00012798,2]
[328124777,1716909032876,-18013.58661582,0.0001287,2]
[328124779,1716909032885,-361.22735375,0.00012898,2]
[328124781,1716909032895,-305.08514526,0.00012898,2]
[328124782,1716909032904,-270.72824781,0.00012898,2]
[328124783,1716909032913,-155.0,0.00012898,2]
[328124784,1716909032922,-241.02044782,0.00012898,2]
[328124785,1716909032932,-277.3658757,0.00012898,2]
[328124786,1716909032941,-156.77330223,0.00012898,2]
[328124787,1716909032950,-1273.86928001,0.00012898,2]
[328124788,1716909032961,-226.51077942,0.00012898,2]
[328124789,1716909032970,-645.66557881,0.00012898,2]
[328124790,1716909032979,-1214.89267019,0.00012898,2]
[328124791,1716909032987,-2187.63741095,0.00012898,2]
[328124792,1716909032996,-2220.0136269,0.00012898,2]
[328124793,1716909033005,-3721.66553585,0.00012898,2]
[328124794,1716909033015,-686.67265106,0.00012898,2]
[328124795,1716909033024,-755.6187192,0.00012898,2]
[328124796,1716909033033,-8577.52924389,0.00012898,2]
[328124797,1716909033043,-6913.5928,0.00012898,2]
[328124798,1716909033052,-1000.0,0.00012898,2]
[328124799,1716909033061,-207.5485086,0.00012899,2]
[328124800,1716909033070,-259.00448085,0.00012899,2]
[328124801,1716909033079,-206.59062887,0.00012899,2]
[328124802,1716909033089,-155.0,0.00012899,2]
[328124803,1716909033098,-344.66778136,0.00012899,2]
[328124804,1716909033108,-298.07368483,0.000129,2]
[328124805,1716909033117,-3744.029,0.000129,2]
[328124806,1716909033126,-2197.0338,0.000129,2]
[328124807,1716909033135,-273.1766,0.000129,2]
[328124808,1716909033144,-1706.5889,0.000129,2]
[328124809,1716909033153,-154.113523,0.000129,2]
[328124810,1716909033163,-199.32644258,0.000129,2]
[328124811,1716909033173,-180.27168715,0.000129,2]
[328124812,1716909033182,-320.20812405,0.000129,2]
[328124813,1716909033192,-10884.42118198,0.000129,2]
[328124814,1716909033201,-3055.224914,0.00012986,2]
[328124815,1716909033212,-172.3172339,0.0001299,2]
[328124816,1716909033221,-152.69,0.0001299,2]
[328124817,1716909033231,-152.69,0.0001299,2]
[328124818,1716909033240,-152.69,0.0001299,2]
[328124819,1716909033249,-162.01712187,0.00012998,2]
[328124820,1716909033259,-155.05229965,0.00012998,2]
[328124821,1716909033268,-155.0,0.00012998,2]
[328124822,1716909033277,-1180.1693692,0.00012998,2]
[328124823,1716909033287,-5276.18337802,0.00012998,2]
[328124824,1716909033296,-155.28365723,0.00012998,2]
[328124825,1716909033305,-267.64515766,0.00012999,2]
[328124826,1716909033315,-115821.62293226,0.00012999,2]
[328124827,1716909033330,-3404.98868,0.00012999,2]
[328124828,1716909033352,-14775.73714738,0.00012999,2]
[328124829,1716909033364,-4147.36848739,0.00012999,2]
[328124830,1716909033376,-2611.01001611,0.00012999,2]
[328124831,1716909033385,-1413168.61644509,0.00013,2]
[328124839,1716909038610,-29.93639425,0.000129,2]
[328124840,1716909038623,-854.027734,0.000129,2]
[328124841,1716909038632,-4549.49226597,0.00013,2]
[328124842,1716909039540,-2016.51452738,0.00013,2]
[328124845,1716909039554,-2052.79993894,0.00013,2]
[328124847,1716909039565,-687.36456214,0.00013,2]
[328124848,1716909039577,-15407.80000009,0.00013,2]
[328124874,1716909041326,-444.91275082,0.00013,2]
[328124876,1716909041342,-13623.8,0.00013,2]
[328124908,1716909041647,-962.77169997,0.00013,2]
[328124965,1716909042549,-768.051742,0.00013,2]
[328124966,1716909042560,-1875.69314294,0.00013,2]
[328125022,1716909043451,-14859.12807265,0.00013,2]
[328125026,1716909043746,-351.77856412,0.00013,2]
[328125027,1716909043758,-4317.15364858,0.00013,2]
[328125028,1716909043770,-1618.66234261,0.00013,2]
[328125029,1716909043781,-20858.9169504,0.00013,2]
[328125030,1716909046292,-2045.53082957,0.00012999,2]
[328125033,1716909046302,-4290.0416479,0.00013,2]
[328125037,1716909046313,-13836.8601378,0.00013,2]
[328125041,1716909046324,-711.93069116,0.00013,2]
[328125090,1716909046605,-766.98,0.00013,2]
[328125094,1716909046616,-572.05675015,0.00013,2]
[328125096,1716909046628,-11527.86111938,0.00013,2]
[328125098,1716909046640,-319.50316463,0.00013,2]
[328125103,1716909046921,-413.44219339,0.00013,2]
[328125260,1716909048724,64962.60684115,9.293e-05,2]
[328125813,1716910232683,-155.0,0.00010207,2]
[328125815,1716910232699,-509.92,0.00010208,2]
[328125817,1716910232710,-1789.09722972,0.00010749,2]
[328125819,1716910232720,-540.51220902,0.00010754,2]
[328125822,1716910232732,-2263.8495,0.00011966,2]
[328125823,1716910232741,-150.0,0.00012065,2]
[328125824,1716910232752,-23900.0,0.00012066,2]
[328125825,1716910232762,-250.0,0.00012093,2]
[328125826,1716910232772,-250.0,0.00012097,2]
[328125827,1716910232782,-2630.34,0.00012097,2]
[328125828,1716910232792,-499.99,0.00012097,2]
[328125829,1716910232802,-797.65,0.00012097,2]
[328125830,1716910232812,-200.0,0.00012113,2]
[328125831,1716910232821,-2623.96,0.00012113,2]
[328125832,1716910232831,-563.16,0.00012117,2]
[328125833,1716910232840,-4399.54,0.00012117,2]
[328125834,1716910232850,-1402.09,0.00012117,2]
[328125835,1716910232860,-904.0,0.00012117,2]
[328125836,1716910232870,-1500.0,0.0001217,2]
[328125837,1716910232879,-155.69,0.00012182,2]
[328125838,1716910232890,-155.69,0.00012224,2]
[328125839,1716910232899,-150.0,0.00012238,2]
[328125840,1716910232908,-2056.88,0.00012238,2]
[328125841,1716910232918,-155.69,0.00012267,2]
[328125842,1716910232932,-155.69,0.00012309,2]
[328125843,1716910232945,-155.69,0.00012351,2]
[328125844,1716910232954,-155.69,0.00012394,2]
[328125845,1716910232963,-155.69,0.00012436,2]
[328125846,1716910232974,-509.92,0.00012472,2]
[328125847,1716910232983,-155.69,0.00012478,2]
[328125848,1716910232992,-155.69,0.00012521,2]
[328125849,1716910233002,-155.69,0.00012563,2]
[328125850,1716910233013,-155.69,0.00012605,2]
[328125851,1716910233023,-2160.68,0.00012608,2]
[328125852,1716910233033,-604.81,0.00012608,2]
[328125853,1716910233042,-883.0724361,0.00012616,2]
[328125854,1716910233051,-168.05,0.00012618,2]
[328125855,1716910233060,-480.0,0.00012618,2]
[328125856,1716910233070,-317.72,0.00012618,2]
[328125857,1716910233080,-155.69,0.00012648,2]
[328125858,1716910233089,-155.69,0.0001269,2]
[328125859,1716910233099,-155.69,0.00012732,2]
[328125860,1716910233108,-155.69,0.00012775,2]
[328125861,1716910233118,-155.69,0.00012817,2]
[328125862,1716910233128,-7166.04257102,0.0001287,2]
[328125863,1716910233137,-3648.159,0.00012899,2]
[328125864,1716910233147,-8362.0215,0.00012899,2]
[328125865,1716910233156,-264.82133589,0.00012935,2]
[328125866,1716910233166,-217.18864147,0.00012996,2]
[328125867,1716910233176,-195.19,0.00012996,2]
[328125868,1716910233186,-240.94532388,0.00012997,2]
[328125869,1716910233199,-4554.02369773,0.00012997,2]
[328125870,1716910233208,-657.03192757,0.00012997,2]
[328125871,1716910233217,-199.8482483,0.00012997,2]
[328125872,1716910233226,-155.3047756,0.00012997,2]
[328125873,1716910233235,-1215.42910242,0.00012997,2]
[328125874,1716910233244,-2364.2726144,0.00012998,2]
[328125875,1716910233253,-2841.90097802,0.00012999,2]
[328125876,1716910233263,-25176.22072897,0.00013,2]
[328125877,1716910233272,-32331.88022112,0.00013,2]
[328125878,1716910233282,-2000.0,0.00013,2]
[328125879,1716910233291,-200.0,0.00013,2]
[328125880,1716910233301,-1725.34895,0.00013,2]
[328125881,1716910233310,-210.0,0.00013271,2]
[328125882,1716910233319,-9795.9790638,0.00013333,2]
[328125883,1716910233329,-171.07,0.000134,2]
[328125884,1716910233339,-520.0,0.00013433,2]
[328125885,1716910233349,-2751.0,0.00013699,2]
[328125886,1716910233358,-226.33,0.00013767,2]
[328125887,1716910233368,-2870.5209,0.00013886,2]
[328125888,1716910233377,-280.745846,0.00013973,2]
[328125889,1716910233387,-155.13,0.00013973,2]
[328125890,1716910233397,-156.82,0.00013973,2]
[328125891,1716910233406,-202.45,0.00013973,2]
[328125892,1716910233416,-157.25,0.00013973,2]
[328125893,1716910233426,-28173.1479,0.00014,2]
[328125894,1716910233436,-3702.685,0.0001405,2]
[328125895,1716910233450,-480.0,0.00014195,2]
[328125896,1716910233460,-209.076,0.000142,2]
[328125897,1716910233469,-151.063,0.000142,2]
[328125898,1716910233479,-808.0,0.000142,2]
[328125899,1716910233488,-2398.0,0.000142,2]
[328125900,1716910233498,-468.531,0.000142,2]
[328125901,1716910233507,-193.906,0.000142,2]
[328125902,1716910233517,-249.414,0.000142,2]
[328125903,1716910233527,-1651.0,0.000142,2]
[328125904,1716910233536,-205.092,0.000142,2]
[328125905,1716910233546,-216.0,0.000142,2]
[328125906,1716910233556,-1304.0,0.000142,2]
[328125907,1716910233566,-3166.0,0.000142,2]
[328125908,1716910233575,-544.0,0.000142,2]
[328125909,1716910233586,-1112.281,0.000142,2]
[328125910,1716910233595,-5140.0,0.000142,2]
[328125911,1716910233605,-5766.0,0.000142,2]
[328125912,1716910233614,-357.0,0.000142,2]
[328125913,1716910233624,-975.0,0.000142,2]
[328125914,1716910233633,-289.0,0.000142,2]
[328125915,1716910233644,-509.92,0.00014736,2]
[328125916,1716910233653,-280.745846,0.00014795,2]
[328125917,1716910233663,-2623.96,0.00014853,2]
[328125918,1716910233672,-151.0,0.00014916,3]
[328125919,1716910233682,-151.0,0.00014916,2]
[328125920,1716910233695,-155.78781986,0.00015,2]
[328125921,1716910233705,-325.28545213,0.00015,2]
[328125922,1716910233714,-4217.45561659,0.00015,2]
[328125923,1716910233723,-2928.18168522,0.00015,2]
[328125924,1716910233733,-150.52,0.00015068,2]
[328125925,1716910233742,-520.0,0.00015112,2]
[328125926,1716910233751,-9795.97906374,0.00015572,2]
[328125927,1716910233761,-280.745846,0.00015616,2]
[328125928,1716910233771,-480.0,0.00015772,2]
[328125929,1716910233781,-2951.0,0.000159,2]
[328125930,1716910233792,-770.0,0.000159,2]
[328125931,1716910233803,-280.745846,0.00016438,2]
[328125932,1716910233813,-1351.15,0.00016438,2]
[328125933,1716910233823,-150.52,0.00016438,2]
[328125934,1716910233832,-1231.1158845,0.000165,2]
[328125935,1716910233842,-151.0,0.00016627,2]
[328125936,1716910233852,-520.0,0.00016791,2]
[328125937,1716910233861,-3008.0,0.00016834,2]
[328125938,1716910233871,-989.17242394,0.000169,2]
[328125939,1716910233880,-18096.0,0.00016914,2]
[328125940,1716910233890,-18096.0,0.00016914,2]
[328125941,1716910233900,-509.92,0.00017,2]
[328125942,1716910233911,-322.541,0.000172,2]
[328125943,1716910233920,-2363.365,0.000172,2]
[328125944,1716910233934,-1644.0,0.000172,2]
[328125945,1716910233947,-209.0,0.000172,2]
[328125946,1716910233956,-1304.0,0.000172,2]
[328125947,1716910233968,-818.523,0.000172,2]
[328125948,1716910233977,-544.0,0.000172,2]
[328125949,1716910233987,-1062.0,0.000172,2]
[328125950,1716910233997,-224.0,0.000172,2]
[328125951,1716910234008,-354.0,0.000172,2]
[328125952,1716910234018,-1000.0,0.000172,2]
[328125953,1716910234028,-153.366,0.00017227,2]
[328125954,1716910234038,-153.366,0.00017227,2]
[328125955,1716910234048,-280.745846,0.0001726,2]
[328125956,1716910234058,-480.0,0.00017349,2]
[328125957,1716910234068,-2623.96,0.00017593,2]
[328125958,1716910234078,-9795.97906374,0.00017811,2]
[328125959,1716910234087,-804.69308319,0.00018,2]
[328125960,1716910234097,-1725.34895,0.00018,2]
[328125961,1716910234107,-280.745846,0.00018082,2]
[328125962,1716910234117,-222.57973073,0.00018296,2]
[328125963,1716910234127,-151.0,0.00018339,2]
[328125964,1716910234137,-500.0,0.00018396,2]
[328125965,1716910234147,-500.0,0.00018396,2]
[328125966,1716910234157,-500.0,0.00018396,2]
[328125967,1716910234167,-500.0,0.00018396,2]
[328125968,1716910234176,-500.0,0.00018396,2]
[328125969,1716910234186,-500.0,0.00018396,2]
[328125970,1716910234200,-500.0,0.00018396,2]
[328125971,1716910234210,-500.0,0.00018396,2]
[328125972,1716910234219,-500.0,0.00018396,2]
[328125973,1716910234229,-500.0,0.00018396,2]
[328125974,1716910234238,-500.0,0.00018396,2]
[328125975,1716910234248,-500.0,0.00018396,2]
[328125976,1716910234258,-500.0,0.00018396,2]
[328125977,1716910234267,-500.0,0.00018396,2]
[328125978,1716910234276,-500.0,0.00018396,2]
[328125979,1716910234286,-500.0,0.00018396,2]
[328125980,1716910234296,-500.0,0.00018396,2]
[328125981,1716910234305,-500.0,0.00018396,2]
[328125982,1716910234315,-500.0,0.00018396,2]
[328125983,1716910234324,-500.0,0.00018396,2]
[328125984,1716910234334,-500.0,0.00018396,2]
[328125985,1716910234343,-500.0,0.00018396,2]
[328125986,1716910234353,-500.0,0.00018396,2]
[328125987,1716910234363,-500.0,0.00018396,2]
[328125988,1716910234373,-500.0,0.00018396,2]
[328125989,1716910234382,-500.0,0.00018396,2]
[328125990,1716910234392,-500.0,0.00018396,2]
[328125991,1716910234402,-500.0,0.00018396,2]
[328125992,1716910234412,-500.0,0.00018396,2]
[328125993,1716910234421,-500.0,0.00018396,2]
[328125994,1716910234431,-500.0,0.00018396,2]
[328125995,1716910234442,-500.0,0.00018396,2]
[328125996,1716910234451,-500.0,0.00018396,2]
[328125997,1716910234460,-500.0,0.00018396,2]
[328125998,1716910234469,-500.0,0.00018396,2]
[328125999,1716910234479,-500.0,0.00018396,2]
[328126000,1716910234488,-500.0,0.00018396,2]
[328126001,1716910234498,-500.0,0.00018396,2]
[328126002,1716910234507,-500.0,0.00018396,2]
[328126003,1716910234517,-500.0,0.00018396,2]
[328126004,1716910234528,-500.0,0.00018396,2]
[328126005,1716910234538,-500.0,0.00018396,2]
[328126006,1716910234547,-500.0,0.00018396,2]
[328126007,1716910234557,-500.0,0.00018396,2]
[328126008,1716910234566,-500.0,0.00018396,2]
[328126009,1716910234576,-500.0,0.00018396,2]
[328126010,1716910234587,-500.0,0.00018396,2]
[328126011,1716910234596,-500.0,0.00018396,2]
[328126012,1716910234606,-500.0,0.00018396,2]
[328126013,1716910234616,-500.0,0.00018396,2]
[328126014,1716910234625,-500.0,0.00018396,2]
[328126015,1716910234635,-500.0,0.00018396,2]
[328126016,1716910234644,-500.0,0.00018396,2]
[328126017,1716910234654,-500.0,0.00018396,2]
[328126018,1716910234663,-500.0,0.00018396,2]
[328126019,1716910234672,-500.0,0.00018396,2]
[328126020,1716910234682,-500.0,0.00018396,2]
[328126021,1716910234695,-500.0,0.00018396,2]
[328126022,1716910234704,-500.0,0.00018396,2]
[328126023,1716910234713,-500.0,0.00018396,2]
[328126024,1716910234722,-500.0,0.00018396,2]
[328126025,1716910234731,-520.0,0.0001847,2]
[328126026,1716910234741,-200.0,0.00018848,2]
[328126027,1716910234750,-280.745846,0.00018904,2]
[328126028,1716910234760,-168.05,0.00018926,2]
[328126029,1716910234769,-480.0,0.00018926,2]
[328126030,1716910234779,-989.17242389,0.00019186,2]
[328126031,1716910234788,-3885.07287193,0.000192,2]
[328126032,1716910234798,-509.92,0.00019264,2]
[328126033,1716910234808,-280.745846,0.00019726,2]
[328126034,1716910234817,-155.50086001,0.0002,2]
[328126035,1716910234827,-1987.47152767,0.0002,2]
[328126036,1716910234837,-1274.52395937,0.0002,2]
[328126037,1716910234847,-634.26621699,0.0002,2]
[328126038,1716910234857,-6246.18937467,0.0002,2]
[328126039,1716910234866,-231.89514109,0.0002,2]
[328126040,1716910234875,-5205.05221608,0.0002,2]
[328126041,1716910234885,-1775.71570343,0.0002,2]
[328126042,1716910234894,-345.77124987,0.0002,2]
[328126043,1716910234903,-151.0,0.0002005,2]
[328126044,1716910234913,-9795.97906374,0.00020051,2]
[328126045,1716910234923,-500.0,0.00020059,2]
[328126046,1716910234940,-288.15918649,0.00020059,2]
[328126047,1716910234949,-157.58687944,0.00020059,2]
[328126048,1716910234958,-500.0,0.00020059,2]
[328126049,1716910234968,-500.0,0.00020059,2]
[328126050,1716910234979,-500.0,0.00020059,2]
[328126051,1716910234988,-500.0,0.00020059,2]
[328126052,1716910234998,-500.0,0.00020059,2]
[328126053,1716910235008,-296.10319322,0.00020059,2]
[328126054,1716910235019,-226.30445507,0.000201,2]
[328126055,1716910235030,-520.0,0.00020149,2]
[328126056,1716910235040,-957.408,0.000202,2]
[328126057,1716910235051,-544.0,0.000202,2]
[328126058,1716910235060,-1062.0,0.000202,2]
[328126059,1716910235070,-202.45,0.00020447,2]
[328126060,1716910235080,-170.87,0.00020548,2]
[328126061,1716910235089,-222.57973072,0.00020889,2]
[328126062,1716910235098,-150.0,0.00021,2]
[328126063,1716910235109,-11718.0,0.000212,5]
[328126064,1716910235118,-989.17242389,0.00021471,2]
[328126065,1716910235127,-509.92,0.00021528,2]
[328126066,1716910235136,-151.0,0.00021762,3]
[328126067,1716910235145,-321.18266294,0.00021818,2]
[328126068,1716910235155,-653.34337686,0.000219,2]
[328126069,1716910235164,-176.62,0.00021918,2]
[328126070,1716910235173,-159.56,0.00021918,2]
[328126071,1716910235183,-250.0,0.00021918,2]
[328126072,1716910235196,-2000.0,0.00021918,2]
[328126073,1716910235205,-173.95,0.00021918,2]
[328126074,1716910235214,-9008.71168864,0.00022,2]
[328126075,1716910235223,-9795.97906374,0.0002229,2]
[328126076,1716910235232,-5517.23632911,0.00023,2]
[328126077,1716910235242,-200.24456635,0.00023,2]
[328126078,1716910235252,-1725.34895,0.00023,2]
[328126079,1716910235262,-544.0,0.000232,2]
[328126080,1716910235272,-2007.00181739,0.000234,2]
[328126081,1716910235282,-222.57973072,0.00023482,2]
[328126082,1716910235292,-2051.35862913,0.000236,2]
[328126083,1716910235302,-989.17242389,0.00023757,2]
[328126084,1716910235311,-509.92,0.00023792,2]
[328126085,1716910235322,-344.39583779,0.00023876,2]
[328126086,1716910235334,-153.30098332,0.00023895,2]
[328126087,1716910235343,-168.0910268,0.00023931,2]
[328126088,1716910235353,-168.0910268,0.00023932,2]
[328126089,1716910235362,-628.86268748,0.00023945,2]
[328126090,1716910235371,-599.11963664,0.00024,2]
[328126091,1716910235381,-599.11963664,0.00024,2]
[328126092,1716910235390,-599.11963664,0.00024,2]
[328126093,1716910235400,-599.11963664,0.00024,2]
[328126094,1716910235410,-599.11963664,0.00024,2]
[328126095,1716910235419,-599.11963664,0.00024,2]
[328126096,1716910235429,-599.11963664,0.00024,2]
[328126097,1716910235438,-599.11963664,0.00024,2]
[328126098,1716910235449,-599.11963664,0.00024,2]
[328126099,1716910235593,-599.11963664,0.00024,2]
[328126100,1716910235604,-599.11963664,0.00024,2]
[328126101,1716910235613,-599.11963664,0.00024,2]
[328126102,1716910235622,-599.11963664,0.00024,2]
[328126103,1716910235632,-599.11963664,0.00024,2]
[328126104,1716910235641,-599.11963664,0.00024,2]
[328126105,1716910235650,-599.11963664,0.00024,2]
[328126106,1716910235659,-599.11963664,0.00024,2]
[328126107,1716910235668,-599.11963664,0.00024,2]
[328126108,1716910235678,-599.11963664,0.00024,2]
[328126109,1716910235687,-599.11963664,0.00024,2]
[328126110,1716910235699,-599.11963664,0.00024,2]
[328126111,1716910235708,-599.11963664,0.00024,2]
[328126112,1716910235717,-599.11963664,0.00024,2]
[328126113,1716910235726,-599.11963664,0.00024,2]
[328126114,1716910235735,-599.11963664,0.00024,2]
[328126115,1716910235745,-599.11963664,0.00024,2]